bitfinex/quotes_BTCUSD_20250101
["timestamp","ask_amount","ask_price","bid_price","bid_amount"]
[1735721493568,8.52e-05,93629.0,93628.0,0.23022823]
[1735721493781,0.00627607,93629.0,93628.0,0.23022823]
[1735721495349,0.00627607,93629.0,93628.0,0.23039863]
[1735721496327,0.00627607,93629.0,93628.0,0.25339863]
[1735721496722,8.52e-05,93629.0,93628.0,0.25339863]
[1735721496923,8.52e-05,93629.0,93628.0,0.75343193]
[1735721497146,8.52e-05,93629.0,93628.0,0.77090521]
[1735721497471,8.52e-05,93629.0,93628.0,0.81880521]
[1735721498319,8.52e-05,93629.0,93628.0,0.67440216]
[1735721501896,8.52e-05,93629.0,93628.0,0.64472062]
[1735721505976,8.52e-05,93629.0,93628.0,0.72742062]
[1735721506406,8.52e-05,93629.0,93628.0,1.04103162]
[1735721506615,8.52e-05,93629.0,93628.0,1.18546728]
[1735721506818,8.52e-05,93629.0,93628.0,1.28546728]
[1735721507011,8.52e-05,93629.0,93628.0,1.3894536]
[1735721507493,8.52e-05,93629.0,93628.0,1.3804536]
[1735721507706,8.52e-05,93629.0,93628.0,1.3894536]
[1735721507928,8.52e-05,93629.0,93628.0,1.4806897]
[1735721508108,8.52e-05,93629.0,93628.0,1.4716897]
[1735721508314,8.52e-05,93629.0,93628.0,1.4876897]
[1735721508540,8.52e-05,93629.0,93628.0,1.4786897]
[1735721508770,8.52e-05,93629.0,93628.0,1.4716897]
[1735721508979,8.52e-05,93629.0,93628.0,1.24901794]
[1735721509186,8.52e-05,93629.0,93628.0,1.24001794]
[1735721509598,8.52e-05,93629.0,93628.0,1.23101794]
[1735721509830,8.52e-05,93629.0,93628.0,1.53630792]
[1735721510057,0.00050016,93635.0,93634.0,0.69826037]
[1735721510262,0.00050016,93635.0,93634.0,1.01584369]
[1735721510471,0.213501,93677.0,93645.0,0.75903237]
[1735721510684,0.00023525,93646.0,93645.0,1.01581869]
[1735721510897,0.00023525,93646.0,93645.0,1.03329197]
[1735721511111,0.00023525,93646.0,93645.0,1.05316368]
[1735721511553,0.426941,93690.0,93647.0,0.39546037]
[1735721511767,0.2135442,93695.0,93650.0,0.54826037]
[1735721511979,0.21347,93690.0,93650.0,0.68558063]
[1735721512849,0.21347,93690.0,93650.0,0.70305391]
[1735721513052,0.21347,93690.0,93650.0,1.17167048]
[1735721513267,0.21347,93690.0,93662.0,0.49609337]
[1735721513447,0.21347,93690.0,93662.0,0.75287969]
[1735721513668,0.2135442,93695.0,93662.0,0.86577969]
[1735721513913,0.2135442,93695.0,93662.0,0.87433929]
[1735721514097,8.52e-05,93695.0,93662.0,1.02433929]
[1735721514668,8.52e-05,93695.0,93662.0,1.38896954]
[1735721514868,8.52e-05,93695.0,93662.0,1.37996954]
[1735721515283,8.52e-05,93695.0,93662.0,1.39596954]
[1735721515695,8.52e-05,93695.0,93662.0,1.38896954]
[1735721515924,8.52e-05,93695.0,93662.0,1.39796954]
[1735721518440,0.213467,93691.0,93662.0,1.39796954]
[1735721518927,0.2135642,93686.0,93662.0,1.19398322]
[1735721519149,0.2135642,93686.0,93662.0,1.32748332]
[1735721519352,0.21349,93682.0,93662.0,1.34547041]
[1735721520127,0.21349,93682.0,93662.0,0.75077969]
[1735721520529,0.2135642,93686.0,93662.0,0.77377969]
[1735721520730,0.2135642,93686.0,93662.0,0.86876601]
[1735721521132,0.2135642,93686.0,93662.0,0.97776601]
[1735721521333,0.2135642,93686.0,93662.0,0.95976601]
[1735721521743,0.2135642,93686.0,93662.0,0.97776601]
[1735721522126,0.2135642,93686.0,93662.0,0.96876601]
[1735721523030,0.2135642,93686.0,93662.0,0.97776601]
[1735721523819,8.52e-05,93686.0,93662.0,0.97776601]
[1735721524907,8.52e-05,93686.0,93662.0,0.95976601]
[1735721525128,8.52e-05,93686.0,93662.0,0.97776601]
[1735721525508,8.52e-05,93686.0,93662.0,0.96876601]
[1735721525710,8.52e-05,93686.0,93666.0,0.45556037]
[1735721525949,8.52e-05,93686.0,93666.0,0.63245206]
[1735721526724,8.52e-05,93686.0,93685.0,0.08256037]
[1735721526919,0.00023506,93686.0,93685.0,0.18654669]
[1735721527124,0.00557402,93686.0,93685.0,0.18654669]
[1735721527322,0.00023506,93686.0,93685.0,0.18654669]
[1735721527540,0.00557402,93686.0,93685.0,0.18654669]
[1735721527718,0.00023506,93686.0,93685.0,0.18654669]
[1735721527895,0.21905302,93686.0,93685.0,0.18654669]
[1735721528098,0.30249874,93686.0,93685.0,0.18654669]
[1735721528294,0.29525302,93686.0,93685.0,0.10398632]
[1735721528502,0.29525302,93686.0,93685.0,0.18654669]
[1735721528749,0.29525302,93686.0,93685.0,0.19554669]
[1735721529351,0.29525302,93686.0,93685.0,0.11298632]
[1735721529868,0.29525302,93686.0,93685.0,0.20154669]
[1735721530276,0.29525302,93686.0,93685.0,0.11898632]
[1735721530426,0.37166963,93686.0,93685.0,0.19554669]
[1735721530633,0.31429357,93686.0,93685.0,0.19554669]
[1735721531163,0.31429357,93686.0,93685.0,0.18654669]
[1735721531368,0.31429357,93686.0,93685.0,0.11298632]
[1735721531751,0.31429357,93686.0,93685.0,0.004]
[1735721531952,0.31429357,93686.0,93685.0,0.011]
[1735721532431,0.31429357,93686.0,93679.0,0.08256037]
[1735721532622,0.213492,93680.0,93679.0,0.08256037]
[1735721532861,0.2188129,93680.0,93679.0,0.18654669]
[1735721534930,0.2188129,93680.0,93679.0,0.19254669]
[1735721535337,0.2188129,93680.0,93679.0,0.18654669]
[1735721535549,0.2188129,93680.0,93679.0,0.19754669]
[1735721535949,0.2188129,93680.0,93679.0,0.19454669]
[1735721536288,0.2188129,93680.0,93679.0,0.19854669]
[1735721536966,0.2188129,93680.0,93679.0,0.19454669]
[1735721537512,0.2188129,93680.0,93679.0,0.18654669]
[1735721537722,0.2188129,93680.0,93679.0,0.19554669]
[1735721537936,0.2188129,93680.0,93679.0,0.18654669]
[1735721538353,0.2188129,93680.0,93679.0,0.19954669]
[1735721538943,0.2188129,93680.0,93679.0,0.19554669]
[1735721539138,0.2188129,93680.0,93679.0,0.19954669]
[1735721540201,0.07643506,93686.0,93679.0,0.19954669]
[1735721540380,0.07643506,93686.0,93680.0,0.10398632]
[1735721540585,0.213486,93683.0,93680.0,0.10398632]
[1735721541864,0.426972,93683.0,93680.0,0.10398632]
[1735721542068,0.426972,93683.0,93680.0,0.11298632]
[1735721542851,0.426972,93683.0,93680.0,0.11698632]
[1735721545153,0.426972,93683.0,93682.0,0.08256037]
[1735721545359,0.426972,93683.0,93682.0,0.18654669]
[1735721546323,0.426972,93683.0,93682.0,0.19054669]
[1735721547598,0.426972,93683.0,93682.0,0.19954669]
[1735721553893,0.426972,93683.0,93682.0,0.18654669]
[1735721554212,0.426972,93683.0,93682.0,0.19554669]
[1735721554703,0.4270573,93683.0,93682.0,0.19954669]
[1735721556662,0.66878374,93683.0,93682.0,0.11698632]
[1735721556962,0.67589726,93683.0,93682.0,0.013]
[1735721557238,0.58476031,93683.0,93682.0,0.013]
[1735721557597,0.58476031,93683.0,93682.0,0.009]
[1735721557797,0.15,93682.0,93679.0,0.08256037]
[1735721558005,0.36349,93681.0,93680.0,0.10398632]
[1735721560429,0.36349,93681.0,93680.0,0.10898632]
[1735721561004,0.36349,93681.0,93680.0,0.11098632]
[1735721566592,0.36349,93681.0,93680.0,0.007]
[1735721567229,0.36349,93681.0,93680.0,0.0051706]
[1735721567447,0.36349,93681.0,93680.0,0.0001706]
[1735721567654,0.36349,93681.0,93680.0,0.0041706]
[1735721567858,0.36349,93681.0,93680.0,0.0011706]
[1735721568077,0.36349,93681.0,93680.0,0.0001706]
[1735721568372,0.36349,93681.0,93680.0,0.0031706]
[1735721569950,0.15,93682.0,93680.0,0.0051706]
[1735721570755,0.36349,93681.0,93680.0,0.0031706]
[1735721570969,0.36349,93681.0,93680.0,0.0001706]
[1735721571162,0.36349,93681.0,93680.0,0.0011706]
[1735721571367,0.36349,93681.0,93680.0,0.0041706]
[1735721571570,0.36349,93681.0,93680.0,0.0001706]
[1735721571937,0.36349,93681.0,93680.0,0.0051706]
[1735721572339,0.21349,93681.0,93680.0,0.0051706]
[1735721573192,0.21349,93681.0,93680.0,0.0021706]
[1735721573363,0.21349,93681.0,93680.0,0.0051706]
[1735721573571,0.21349,93681.0,93680.0,0.0031706]
[1735721573765,0.21349,93681.0,93680.0,0.0011706]
[1735721574149,0.21349,93681.0,93680.0,0.0001706]
[1735721574550,0.21349,93681.0,93680.0,0.0041706]
[1735721574942,0.21349,93681.0,93680.0,0.0001706]
[1735721577086,0.21349,93681.0,93680.0,0.0021706]
[1735721577514,0.21349,93681.0,93680.0,0.0041706]
[1735721578055,0.21349,93681.0,93680.0,0.0061706]
[1735721578378,0.21349,93681.0,93680.0,0.0041706]
[1735721579330,0.21349,93681.0,93680.0,0.0061706]
[1735721579520,0.21349,93681.0,93680.0,0.0021706]
[1735721579728,0.21349,93681.0,93680.0,0.0071706]
[1735721580140,0.21349,93681.0,93680.0,0.0021706]
[1735721580356,0.21349,93681.0,93680.0,0.0071706]
[1735721591026,0.2135753,93681.0,93680.0,0.0071706]
[1735721600823,0.2926706,93681.0,93680.0,0.0071706]
[1735721601210,0.4426706,93681.0,93680.0,0.0071706]
[1735721602691,0.4426706,93681.0,93680.0,0.0001706]
[1735721604064,0.2291806,93681.0,93680.0,0.0001706]
[1735721604272,0.1500853,93681.0,93680.0,0.0001706]
[1735721604476,0.3635753,93681.0,93680.0,0.0001706]
[1735721626201,0.3635753,93681.0,93680.0,0.10415692]
[1735721626406,0.3635753,93681.0,93680.0,0.18735692]
[1735721631103,0.3635753,93681.0,93680.0,0.10415692]
[1735721635819,0.3635753,93681.0,93680.0,0.0001706]
[1735721637212,0.213504,93675.0,93674.0,0.08051295]
[1735721639123,0.213504,93675.0,93674.0,0.08151295]
[1735721640288,0.213504,93675.0,93674.0,0.08451295]
[1735721640814,8.53e-05,93681.0,93680.0,0.08256037]
[1735721641106,8.53e-05,93681.0,93680.0,0.31294669]
[1735721642724,8.53e-05,93681.0,93680.0,0.32394669]
[1735721642903,8.53e-05,93681.0,93680.0,0.4202245]
[1735721643104,8.53e-05,93681.0,93680.0,0.4152245]
[1735721643369,8.53e-05,93681.0,93680.0,0.4092245]
[1735721643573,8.53e-05,93681.0,93680.0,0.4182245]
[1735721644189,8.53e-05,93681.0,93680.0,0.32194669]
[1735721644745,8.53e-05,93681.0,93680.0,0.32794669]
[1735721649404,8.53e-05,93685.0,93680.0,0.32794669]
[1735721649620,8.53e-05,93685.0,93681.0,0.10398632]
[1735721649771,0.213486,93683.0,93681.0,0.10398632]
[1735721652070,0.213486,93683.0,93681.0,0.11298632]
[1735721652264,0.213486,93683.0,93681.0,0.11798632]
[1735721653147,0.213486,93683.0,93682.0,0.079]
[1735721653342,0.213486,93683.0,93682.0,0.18298632]
[1735721653921,8.53e-05,93685.0,93684.0,0.08256037]
[1735721654323,8.53e-05,93685.0,93684.0,0.26554669]
[1735721654521,8.53e-05,93685.0,93684.0,0.31294669]
[1735721655326,8.53e-05,93685.0,93684.0,0.31794669]
[1735721655806,8.53e-05,93685.0,93684.0,0.31294669]
[1735721656182,8.53e-05,93685.0,93684.0,0.31894669]
[1735721656383,8.52e-05,93695.0,93684.0,0.23994669]
[1735721656683,8.52e-05,93695.0,93685.0,0.17928632]
[1735721656883,0.213471,93690.0,93685.0,0.17928632]
[1735721657010,8.52e-05,93695.0,93686.0,0.0753]
[1735721657208,0.213465,93692.0,93688.0,0.0753]
[1735721657418,0.213465,93692.0,93689.0,0.10398632]
[1735721659386,0.213465,93692.0,93689.0,0.11798632]
[1735721661444,0.213465,93692.0,93689.0,0.11815672]
[1735721664626,0.426931,93692.0,93689.0,0.11815672]
[1735721666638,0.426931,93692.0,93689.0,0.11315672]
[1735721667045,0.426931,93692.0,93689.0,0.11615672]
[1735721667251,0.426931,93692.0,93689.0,0.10715672]
[1735721667446,0.426931,93692.0,93689.0,0.10415672]
[1735721667800,0.426931,93692.0,93689.0,0.10715672]
[1735721668648,0.426931,93692.0,93689.0,0.11515672]
[1735721668862,0.426931,93692.0,93689.0,0.10715672]
[1735721669251,0.426931,93692.0,93689.0,0.11515672]
[1735721669449,0.426931,93692.0,93689.0,0.10715672]
[1735721669667,0.426931,93692.0,93689.0,0.10415672]
[1735721669902,0.426931,93692.0,93689.0,0.11015672]
[1735721670060,0.426931,93692.0,93689.0,0.11315672]
[1735721670556,0.426931,93692.0,93689.0,0.11015672]
[1735721670762,0.426931,93692.0,93689.0,0.11315672]
[1735721673876,0.426931,93692.0,93691.0,0.08256037]
[1735721674085,0.426931,93692.0,93691.0,0.18654669]
[1735721675756,0.426931,93692.0,93691.0,0.19254669]
[1735721676535,0.576931,93692.0,93691.0,0.10998632]
[1735721676742,0.576931,93692.0,93691.0,0.11298632]
[1735721677143,0.65598634,93692.0,93691.0,0.009]
[1735721677554,0.576931,93692.0,93691.0,0.009]
[1735721677881,0.60106377,93692.0,93691.0,0.009]
[1735721678202,0.64876377,93692.0,93691.0,0.009]
[1735721678830,0.624631,93692.0,93691.0,0.009]
[1735721679252,0.624631,93692.0,93691.0,0.006]
[1735721679455,0.71642634,93692.0,93691.0,0.001]
[1735721679890,0.71642634,93692.0,93691.0,0.003]
[1735721681611,0.94057534,93692.0,93691.0,0.003]
[1735721684239,0.82149534,93692.0,93691.0,0.003]
[1735721686969,0.71642634,93692.0,93691.0,0.003]
[1735721687110,1.26618434,93692.0,93691.0,0.003]
[1735721687785,1.08627634,93692.0,93691.0,0.003]
[1735721688193,1.08627634,93692.0,93691.0,0.002]
[1735721688374,0.363469,93690.0,93689.0,0.0001704]
[1735721688575,0.731757,93690.0,93689.0,0.0001704]
[1735721689754,0.732757,93690.0,93689.0,0.0001704]
[1735721690449,0.695209,93690.0,93689.0,0.0001704]
[1735721690659,0.606271,93690.0,93689.0,0.0001704]
[1735721690872,0.479314,93690.0,93689.0,0.0001704]
[1735721693128,0.478314,93690.0,93689.0,0.0001704]
[1735721693782,0.464919,93690.0,93689.0,0.0001704]
[1735721693963,0.363469,93690.0,93689.0,0.0001704]
[1735721694493,0.508262,93690.0,93689.0,0.0001704]
[1735721694691,0.363469,93690.0,93689.0,0.0001704]
[1735721696061,0.508164,93690.0,93689.0,0.0001704]
[1735721696266,0.59519104,93690.0,93689.0,0.0001704]
[1735721698622,0.59619104,93690.0,93689.0,0.0001704]
[1735721698831,0.509164,93690.0,93689.0,0.0001704]
[1735721699046,0.481933,93690.0,93689.0,0.0001704]
[1735721700928,0.480933,93690.0,93689.0,0.0001704]
[1735721701342,0.363469,93690.0,93689.0,0.0001704]
[1735721701556,0.665973,93690.0,93689.0,0.0001704]
[1735721702364,0.649921,93690.0,93689.0,0.0001704]
[1735721702859,0.75390732,93690.0,93689.0,0.0001704]
[1735721703069,0.71390132,93690.0,93689.0,0.0001704]
[1735721703737,0.68866932,93690.0,93689.0,0.0001704]
[1735721710445,0.68927304,93690.0,93689.0,0.0001704]
[1735721711779,0.69027304,93690.0,93689.0,0.0001704]
[1735721712655,0.69027304,93690.0,93689.0,4e-07]
[1735721712869,0.6171329,93690.0,93689.0,4e-07]
[1735721713081,0.65936909,93690.0,93689.0,4e-07]
[1735721713766,0.63457253,93690.0,93689.0,4e-07]
[1735721714155,0.63357253,93690.0,93689.0,4e-07]
[1735721714313,0.73855885,93690.0,93689.0,4e-07]
[1735721715145,0.363504,93675.0,93674.0,1e-06]
[1735721715364,0.213547,93656.0,93655.0,0.04257344]
[1735721715571,0.213547,93656.0,93655.0,0.14655976]
[1735721716050,0.213547,93656.0,93655.0,0.10398632]
[1735721716444,0.213547,93656.0,93654.0,0.0758]
[1735721716622,0.21359688,93656.0,93654.0,0.0758]
[1735721717846,0.21359688,93656.0,93655.0,0.007]
[1735721718019,0.21359688,93656.0,93654.0,0.0788]
[1735721718437,0.21359688,93656.0,93654.0,0.0858]
[1735721718844,0.21359688,93656.0,93654.0,0.0788]
[1735721719105,0.21459688,93656.0,93655.0,0.007]
[1735721719318,0.27876447,93656.0,93654.0,0.0788]
[1735721719600,0.27876447,93656.0,93654.0,0.0858]
[1735721719803,0.27976447,93656.0,93654.0,0.0858]
[1735721720011,0.27976447,93656.0,93654.0,0.0828]
[1735721720239,0.27976447,93656.0,93654.0,0.0858]
[1735721720459,0.03981873,93655.0,93654.0,0.0858]
[1735721720885,0.03981873,93655.0,93654.0,0.0828]
[1735721721129,0.03981873,93655.0,93654.0,0.0788]
[1735721721713,0.03981873,93655.0,93654.0,0.0758]
[1735721721915,0.21359688,93656.0,93654.0,0.0838]
[1735721722705,0.21359688,93656.0,93654.0,0.0758]
[1735721723635,0.21359688,93656.0,93654.0,0.0788]
[1735721724065,0.21359688,93656.0,93654.0,0.0828]
[1735721724483,0.21359688,93656.0,93654.0,0.0858]
[1735721727128,4.988e-05,93656.0,93655.0,0.18654669]
[1735721727344,4.988e-05,93656.0,93655.0,0.31794669]
[1735721728397,4.988e-05,93656.0,93655.0,0.32094669]
[1735721728821,4.988e-05,93656.0,93655.0,0.32794669]
[1735721730757,0.21359688,93656.0,93655.0,0.32794669]
[1735721731035,0.21359688,93656.0,93655.0,0.31294669]
[1735721731907,0.22351492,93656.0,93655.0,0.31294669]
[1735721732310,0.22351492,93656.0,93655.0,0.31311729]
[1735721738026,0.22351492,93656.0,93655.0,0.23055692]
[1735721738201,0.22351492,93656.0,93655.0,0.18135692]
[1735721738623,0.22351492,93656.0,93655.0,0.0101706]
[1735721738847,0.67925392,93656.0,93655.0,0.0101706]
[1735721739055,0.76922992,93656.0,93655.0,0.0101706]
[1735721739281,0.77171551,93656.0,93655.0,0.0101706]
[1735721739496,0.69566251,93656.0,93655.0,0.0101706]
[1735721741181,0.84566251,93656.0,93655.0,0.0101706]
[1735721745545,0.89447281,93656.0,93655.0,0.0101706]
[1735721746101,0.97417281,93656.0,93655.0,0.0101706]
[1735721748696,0.97417281,93656.0,93655.0,6e-07]
[1735721748907,0.55157681,93656.0,93655.0,6e-07]
[1735721750379,0.55257681,93656.0,93655.0,6e-07]
[1735721750575,0.55157681,93656.0,93655.0,6e-07]
[1735721750924,0.55457681,93656.0,93655.0,6e-07]
[1735721751873,0.55557681,93656.0,93655.0,6e-07]
[1735721752398,0.55457681,93656.0,93655.0,6e-07]
[1735721752638,0.55157681,93656.0,93655.0,6e-07]
[1735721753056,0.55957681,93656.0,93655.0,0.0010006]
[1735721753376,0.55757681,93656.0,93655.0,0.0010006]
[1735721753577,2.0729307,93656.0,93655.0,0.0010006]
[1735721753773,2.15374879,93656.0,93655.0,0.0010006]
[1735721754019,2.14038479,93656.0,93655.0,0.0010006]
[1735721754170,1.47405379,93656.0,93655.0,0.0010006]
[1735721754373,1.38138539,93656.0,93655.0,0.0010006]
[1735721754595,1.59493239,93656.0,93655.0,0.0010006]
[1735721754796,1.39367339,93656.0,93655.0,0.0010006]
[1735721755585,1.31397339,93656.0,93655.0,0.0010006]
[1735721755790,0.37985039,93656.0,93655.0,0.0010006]
[1735721756640,0.37185039,93656.0,93655.0,6e-07]
[1735721757067,0.37685039,93656.0,93655.0,6e-07]
[1735721758148,0.37885039,93656.0,93655.0,6e-07]
[1735721758550,0.37685039,93656.0,93655.0,6e-07]
[1735721759244,0.43588903,93656.0,93655.0,6e-07]
[1735721762442,0.43088903,93656.0,93655.0,6e-07]
[1735721763827,0.43388903,93656.0,93655.0,6e-07]
[1735721764452,0.43488903,93656.0,93655.0,6e-07]
[1735721765011,0.43388903,93656.0,93655.0,6e-07]
[1735721765334,0.37585039,93656.0,93655.0,6e-07]
[1735721765587,0.37285039,93656.0,93655.0,6e-07]
[1735721765995,0.37485039,93656.0,93655.0,6e-07]
[1735721766200,0.37185039,93656.0,93655.0,6e-07]
[1735721766604,0.37485039,93656.0,93655.0,6e-07]
[1735721766806,0.213588,93638.0,93637.0,0.0827]
[1735721767216,0.22109688,93638.0,93637.0,0.0827]
[1735721767415,0.37109688,93638.0,93637.0,0.0827]
[1735721768054,0.37109688,93638.0,93634.0,0.08256037]
[1735721768263,0.213593,93636.0,93634.0,0.0827]
[1735721768781,0.00750888,93635.0,93634.0,0.0827]
[1735721769004,0.23296188,93635.0,93634.0,0.0827]
[1735721769219,0.98330388,93635.0,93634.0,0.002]
[1735721769425,0.89611388,93635.0,93634.0,0.002]
[1735721770061,0.89711388,93635.0,93634.0,0.009]
[1735721770248,1.04711388,93635.0,93634.0,0.009]
[1735721770446,1.04711388,93635.0,93634.0,0.007]
[1735721770802,1.04711388,93635.0,93634.0,0.01]
[1735721771006,1.02806588,93635.0,93634.0,0.01]
[1735721771211,0.81903288,93635.0,93634.0,0.007]
[1735721771656,0.81903288,93635.0,93634.0,0.009]
[1735721772221,0.81803288,93635.0,93634.0,0.002]
[1735721772628,0.81803288,93635.0,93634.0,0.006]
[1735721773807,0.81803288,93635.0,93634.0,0.004]
[1735721774037,0.363609,93629.0,93628.0,0.0001704]
[1735721774440,0.37110326,93629.0,93628.0,0.0001704]
[1735721776452,0.37210326,93629.0,93628.0,0.0001704]
[1735721777315,0.37110326,93629.0,93628.0,0.0001704]
[1735721778765,0.37210326,93629.0,93628.0,0.0001704]
[1735721779120,0.37110326,93629.0,93628.0,0.0001704]
[1735721782330,0.37110326,93629.0,93628.0,0.0795704]
[1735721792657,0.06103079,93629.0,93628.0,0.0795704]
[1735721792889,0.00749426,93629.0,93628.0,0.0795704]
[1735721793089,0.213597,93634.0,93628.0,0.0795704]
[1735721793287,0.22083626,93629.0,93628.0,0.0795704]
[1735721793489,0.213609,93629.0,93628.0,0.0795704]
[1735721793725,0.22083626,93629.0,93628.0,0.0795704]
[1735721798108,0.00602271,93629.0,93628.0,0.0795704]
[1735721798345,0.213597,93634.0,93628.0,0.0795704]
[1735721798548,0.00602271,93629.0,93628.0,0.0795704]
[1735721798852,0.213597,93634.0,93628.0,0.0795704]
[1735721799169,0.213597,93634.0,93628.0,0.0805704]
[1735721799400,0.00602271,93633.0,93628.0,0.0805704]
[1735721799815,0.213609,93629.0,93628.0,0.0795704]
[1735721800444,0.21963171,93629.0,93628.0,0.0795704]
[1735721802016,0.21963171,93629.0,93628.0,0.0805704]
[1735721802236,0.21963171,93629.0,93628.0,0.0825704]
[1735721803788,0.21971701,93629.0,93628.0,0.0825704]
[1735721808270,0.00610801,93629.0,93628.0,0.31601709]
[1735721812071,0.00610801,93629.0,93628.0,0.0825704]
[1735721815837,0.16971001,93632.0,93628.0,0.0825704]
[1735721816016,0.00500571,93629.0,93628.0,0.0805704]
[1735721816220,0.42721,93631.0,93628.0,0.0835704]
[1735721816443,0.00500571,93629.0,93628.0,0.0825704]
[1735721816645,0.42721,93631.0,93628.0,0.0825704]
[1735721816871,0.00500571,93629.0,93628.0,0.0835704]
[1735721817090,0.42721,93631.0,93628.0,0.0835704]
[1735721817376,0.213605,93631.0,93628.0,0.0835704]
[1735721817623,0.42721,93631.0,93628.0,0.0805704]
[1735721817798,0.00500571,93630.0,93628.0,0.0815704]
[1735721818003,0.213609,93629.0,93628.0,0.0815704]
[1735721818210,0.21861503,93629.0,93628.0,0.0805704]
[1735721818412,0.21861503,93629.0,93628.0,0.0815704]
[1735721818622,0.21861503,93629.0,93628.0,0.0825704]
[1735721818856,0.21861503,93629.0,93628.0,0.0805704]
[1735721819053,0.21861503,93629.0,93628.0,0.0825704]
[1735721819410,0.21861503,93629.0,93628.0,0.0805704]
[1735721820755,0.21861503,93629.0,93628.0,0.0835704]
[1735721821794,0.21861503,93629.0,93628.0,0.0825704]
[1735721821990,0.21861503,93629.0,93628.0,0.0795704]
[1735721822200,0.21861503,93629.0,93628.0,0.0835704]
[1735721822931,0.21861503,93629.0,93628.0,0.0825704]
[1735721823343,0.21861503,93629.0,93628.0,0.0835704]
[1735721823955,0.21861503,93629.0,93628.0,0.0805704]
[1735721824159,0.21861503,93629.0,93628.0,0.0845704]
[1735721824367,0.21861503,93629.0,93628.0,0.0051704]
[1735721824578,0.21861503,93629.0,93628.0,0.0001704]
[1735721824774,0.21861503,93629.0,93628.0,0.0041704]
[1735721824979,0.21861503,93629.0,93628.0,0.0011704]
[1735721825400,0.21861503,93629.0,93628.0,0.0021704]
[1735721825608,0.21861503,93629.0,93628.0,0.0011704]
[1735721826128,1.13315226,93629.0,93628.0,0.0011704]
[1735721826347,2.64022626,93629.0,93628.0,0.0011704]
[1735721826555,2.59213926,93629.0,93628.0,0.0011704]
[1735721827215,2.59213926,93629.0,93628.0,0.0001704]
[1735721827420,2.59613926,93629.0,93628.0,0.0001704]
[1735721827629,2.78755344,93629.0,93628.0,0.0001704]
[1735721828041,2.30554344,93629.0,93628.0,0.0001704]
[1735721828267,1.28931344,93629.0,93628.0,0.0001704]
[1735721828457,1.28839874,93629.0,93628.0,0.0001704]
[1735721828710,1.23309074,93629.0,93628.0,0.0001704]
[1735721828911,0.63917033,93629.0,93628.0,0.0001704]
[1735721829117,0.64317033,93629.0,93628.0,0.0001704]
[1735721829972,0.61846733,93629.0,93628.0,0.0001704]
[1735721830174,0.6134613,93629.0,93628.0,0.0001704]
[1735721830402,0.6094613,93629.0,93628.0,0.0001704]
[1735721830645,0.6074613,93629.0,93628.0,0.0001704]
[1735721830852,0.6104613,93629.0,93628.0,0.0001704]
[1735721831050,0.6114613,93629.0,93628.0,0.0001704]
[1735721831263,0.6144613,93629.0,93628.0,0.0001704]
[1735721831468,0.6134613,93629.0,93628.0,0.0001704]
[1735721831828,0.6144613,93629.0,93628.0,0.0001704]
[1735721832052,0.6084613,93629.0,93628.0,0.0001704]
[1735721832298,0.6074613,93629.0,93628.0,0.0001704]
[1735721832473,0.6114613,93629.0,93628.0,0.0001704]
[1735721833679,0.6084613,93629.0,93628.0,0.0001704]
[1735721833831,0.6074613,93629.0,93628.0,0.0001704]
[1735721834030,0.6114613,93629.0,93628.0,0.0001704]
[1735721834280,0.6084613,93629.0,93628.0,0.0001704]
[1735721834594,0.6094613,93629.0,93628.0,0.0001704]
[1735721835016,0.5071793,93629.0,93628.0,0.0001704]
[1735721835621,0.5061793,93629.0,93628.0,0.0001704]
[1735721836634,0.5041793,93629.0,93628.0,0.0001704]
[1735721837062,0.5071793,93629.0,93628.0,0.0001704]
[1735721837446,0.3666943,93629.0,93628.0,0.0777704]
[1735721838257,0.3656943,93629.0,93628.0,0.0777704]
[1735721838466,0.3636943,93629.0,93628.0,0.0777704]
[1735721838665,0.3666943,93629.0,93628.0,0.0777704]
[1735721839999,0.3656943,93629.0,93628.0,0.0777704]
[1735721840480,0.3636943,93629.0,93628.0,0.0777704]
[1735721841238,0.44279246,93629.0,93628.0,0.0777704]
[1735721841488,0.3636943,93629.0,93628.0,0.0001704]
[1735721841689,0.3666943,93629.0,93628.0,0.0001704]
[1735721841901,0.3646943,93629.0,93628.0,0.0001704]
[1735721842249,0.3646943,93629.0,93628.0,0.0011704]
[1735721842458,0.4911643,93629.0,93628.0,0.0001704]
[1735721843430,0.4901643,93629.0,93628.0,0.0001704]
[1735721843874,0.4901643,93629.0,93628.0,0.0061704]
[1735721844688,0.4901643,93629.0,93628.0,0.0041704]
[1735721845609,0.4901643,93629.0,93628.0,0.0061704]
[1735721847572,0.4901643,93629.0,93628.0,0.0041704]
[1735721847781,0.4901643,93629.0,93628.0,0.0001704]
[1735721847955,0.4901643,93629.0,93628.0,0.0021704]
[1735721848722,0.4901643,93629.0,93628.0,0.0001704]
[1735721851992,0.4911643,93629.0,93628.0,0.0001704]
[1735721852199,0.4921643,93629.0,93628.0,0.0001704]
[1735721852415,0.49074911,93629.0,93628.0,0.0001704]
[1735721853313,0.48974911,93629.0,93628.0,0.0001704]
[1735721853716,0.49074911,93629.0,93628.0,0.0001704]
[1735721853965,0.48974911,93629.0,93628.0,0.0001704]
[1735721854176,0.49074911,93629.0,93628.0,0.0001704]
[1735721857235,0.58255275,93629.0,93628.0,0.0001704]
[1735721859643,0.49074911,93629.0,93628.0,0.0001704]
[1735721863273,0.36427911,93629.0,93628.0,0.0001704]
[1735721863673,4.53380611,93629.0,93628.0,0.0001704]
[1735721863911,4.37623911,93629.0,93628.0,0.0001704]
[1735721864321,4.49562082,93629.0,93628.0,0.0001704]
[1735721864524,4.47701682,93629.0,93628.0,0.0001704]
[1735721864727,4.46573582,93629.0,93628.0,0.0001704]
[1735721865108,3.06618782,93629.0,93628.0,0.0001704]
[1735721865345,2.18577182,93629.0,93628.0,0.0001704]
[1735721865544,2.13036082,93629.0,93628.0,0.0001704]
[1735721865750,2.02836082,93629.0,93628.0,0.0001704]
[1735721865952,2.02836082,93629.0,93628.0,4e-07]
[1735721865953,1.96769366,93629.0,93628.0,4e-07]
[1735721866179,0.51165966,93629.0,93628.0,4e-07]
[1735721866588,0.36792195,93629.0,93628.0,4e-07]
[1735721867042,0.36692195,93629.0,93628.0,4e-07]
[1735721867461,0.36892195,93629.0,93628.0,4e-07]
[1735721867668,0.37592195,93629.0,93628.0,0.0010004]
[1735721867886,2.89717495,93629.0,93628.0,0.0010004]
[1735721868085,2.68922095,93629.0,93628.0,4e-07]
[1735721868298,0.37592195,93629.0,93628.0,0.0010004]
[1735721868533,0.37592195,93629.0,93628.0,4e-07]
[1735721868780,2.67389895,93629.0,93628.0,4e-07]
[1735721868979,0.37292195,93629.0,93628.0,4e-07]
[1735721869190,0.37227911,93629.0,93628.0,4e-07]
[1735721869399,0.37541836,93629.0,93628.0,0.0010004]